[Event "44th Chess Olympiad Women 2022"]
[Site "Chennai"]
[Date "2022.08.09"]
[Round "11.32"]
[White "Fredericia, Louise"]
[Black "Mudodo, Refiloe Hazel"]
[Result "1/2-1/2"]
[ECO "A03"]
[WhiteElo "1990"]
[BlackElo "1604"]
[Annotator "TA"]
[PlyCount "95"]
[EventDate "2022.07.29"]
[EventType "team-tourn"]
[EventCountry "IND"]
[SourceTitle "playchess.com"]
[Source "ChessBase"]
[SourceQuality "1"]
[WhiteTeam "Denmark"]
[BlackTeam "Zimbabwe"]
[WhiteTeamCountry "DEN"]
[BlackTeamCountry "ZIM"]
[TimeControl "40/5400+30:1800+30"]

{[%evp 10,95,9,-1,4,2,33,16,22,14,51,40,43,0,40,35,66,33,69,39,60,60,64,93,270,264,256,-48,-67,-237,-235,-213,-211,-397,-415,-397,-312,-321,-343,-333,-337,-359,-266,-267,-267,-330,-322,-366,-352,-561,-585,-574,-584,-602,-590,-554,-505,-550,-500,-491,-475,-543,-445,-587,-595,-630,-621,-560,-460,-414,-333,-348,-339,-477,-470,-470,-435,-711,-102,-102,-102,-106,0,0,0,0,0,0]} 1. f4 {[%emt 0:00:32]} e6 {[%emt 0:02:15]} 2. Nf3 {[%emt 0:00:40]} d5 {[%emt 0:00:57]} 3. e3 {[%emt 0:00:22]} Bd6 {[%emt 0:01:45]} 4. b3 {[%emt 0:00:33]} Nf6 {[%emt 0:02:27]} 5. Bb2 {[%emt 0:00:15]} O-O {[%emt 0:02:30]} 6. Be2 {[%emt 0:02:59]} b6 {[%emt 0:01:55] A03: Bird's Opening with 1...d5.} 7. O-O {[%emt 0:05:37] [#]} Ba6 $146 {[%emt 0:03:01]} ({Predecessor:} 7... c5 8. Qe1 Nbd7 9. Na3 Bb7 10. Ne5 Ne8 11. d4 f6 12. Nd3 f5 13. c4 Nef6 14. Nb5 {½-½ (33) Roessel,L (1831)-Malinovsky,P (2027) Hradec Kralove 2017}) 8. Ne5 {[%emt 0:08:05]} Bxe2 {[%emt 0:02:56]} 9. Qxe2 {[%emt 0:00:54]} Bxe5 {[%emt 0:00:14]} 10. fxe5 {[%emt 0:05:12]} Nfd7 {[%emt 0:04:47]} 11. Qg4 {[%emt 0:04:03]} Nc6 {[%emt 0:01:32]} 12. d4 {[%emt 0:01:39]} Re8 {[%emt 0:02:21]} 13. Nd2 {[%emt 0:00:44]} f6 {[%emt 0:01:42][%cal Rf6e5]} 14. c4 {[%emt 0:13:13]} fxe5 {[%emt 0:06:38]} 15. cxd5 {[%emt 0:03:42]} exd5 {[%emt 0:00:30]} 16. Rac1 $1 {[%emt 0:06:12] White is more active.} (16. dxe5 Ndxe5 17. Qg3 Qd7 $15) 16... Nb4 {[%emt 0:06:24]} (16... Nf6 $16 17. Qg5 Re6) 17. dxe5 $18 {[%emt 0:02:54]} Nd3 {[%emt 0:00:28] [#]} 18. e6 $2 {[%emt 0:00:20] The board is on fire.} (18. Rf7 $1 $18 {[%mdl 512]} Kxf7 19. e6+ Ke7 20. Rc6 $1 (20. exd7 $2 Qxd7 21. Qg5+ Kf8 $19) (20. Qxg7+ Kd6 $11)) 18... N7e5 $15 {[%emt 0:06:10] Pair of Knights!} 19. Qg3 {[%emt 0:06:36]} (19. Bxe5 $15 Nxe5 20. Qf5) 19... Nxb2 $19 {[%emt 0:01:42]} ({Don't take} 19... Ng6 20. Rxc7 $1 Re7 21. Rxe7 Qxe7 22. Rf7 Qxe6 23. Rxg7+ Kf8 24. Qf3+ Ke8 25. e4 $1 $18) 20. Qxe5 {[%emt 0:12:12]} Nd3 $1 {[%emt 0:00:31][%csl LRc1,LRe5]} 21. Qg3 {[%emt 0:03:22]} (21. Qxc7 Nxc1 22. Qf7+ Kh8 23. Rxc1) 21... Nxc1 {[%emt 0:00:08]} 22. Rxc1 {[%emt 0:00:26]} Qd6 {[%emt 0:00:09]} 23. Rxc7 {[%emt 0:00:42][%csl Gc7][%cal Rg3g7]} Qxg3 {[%emt 0:00:08]} 24. hxg3 {[%emt 0:00:08]} Rxe6 {[%emt 0:00:15][%mdl 4096] Endgame KRR-KRN} 25. Kf2 {[%emt 0:02:10]} Rf8+ {[%emt 0:01:45]} 26. Nf3 {[%emt 0:00:04]} a5 {[%emt 0:00:33]} 27. Rd7 {[%emt 0:00:14]} Rfe8 {[%emt 0:01:24]} 28. Nd4 {[%emt 0:01:10]} Rxe3 {[%emt 0:01:41]} 29. Nf5 {[%emt 0:01:44]} (29. g4 $142) 29... Re2+ {[%emt 0:04:24]} 30. Kf3 {[%emt 0:00:08]} Rxa2 {[%emt 0:02:40]} ({And not} 30... g6 31. Nh6+ Kh8 32. Nf7+ Kg7 33. Ne5+ Kf6 34. Kxe2 $17) 31. Rxg7+ {[%emt 0:00:12]} Kh8 {[%emt 0:01:04]} 32. Rb7 {[%emt 0:00:18]} Rf8 {[%emt 0:01:09]} 33. g4 {[%emt 0:00:33]} d4 {[%emt 0:03:29]} 34. Rxb6 {[%emt 0:00:35]} Rd8 {[%emt 0:00:15]} 35. Nd6 {[%emt 0:02:11] Nf7+ is the strong threat.} Rd7 {[%emt 0:00:12] Inhibits Nf7+. Hoping for ...d3.} 36. Ke4 {[%emt 0:04:15]} Rxg2 {[%emt 0:00:34]} 37. Kxd4 {[%emt 0:00:39]} Rxg4+ {[%emt 0:00:08]} 38. Ke5 {[%emt 0:00:29]} Rg5+ {[%emt 0:03:25]} 39. Nf5 {[%emt 0:00:51]} (39. Ke6 Rxd6+ $1 {[%mdl 512]} 40. Rxd6 Rg6+ 41. Ke7 Rxd6 42. Kxd6 Kg7 43. Ke5 Kg6 44. Kf4 h5 45. Kf3 Kg5 46. Kf2 Kg4 47. Kf1 h4 48. Kg2 h3+ 49. Kf2 Kf4 50. Kf1 Kf3 51. Kg1 Kg3 52. Kf1 h2 53. Ke2 h1=Q 54. Kd3 Qd5+ 55. Kc3 Kf3 56. b4 a4 57. b5 Qxb5 58. Kd4 a3 59. Kc3 Ke3 60. Kc2 Qb2+ 61. Kd1 Qd2#) 39... Kg8 {[%emt 0:03:03] And now ...Rf7 would win.} 40. Rb8+ {[%emt 0:05:47]} Kf7 {[%emt 0:00:56] Strongly threatening ...Kg6.} 41. Ra8 {[%emt 0:30:45]} (41. Rb6 $142) 41... Kg6 {[%emt 0:31:42]} 42. Ra6+ {[%emt 0:01:16] [#]} Kh5 $1 {[%emt 0:00:33]} 43. Kf4 {[%emt 0:01:26]} (43. Rh6+ $142 Kg4 44. Rh4+ Kf3 45. Rf4+ Ke2 46. Kf6) 43... Rxf5+ $2 {[%emt 0:00:50]} 44. Kxf5 $17 {[%emt 0:00:07]} Rd5+ {[%emt 0:00:24]} 45. Kf4 {[%emt 0:00:34] [#]} Rb5 {[%emt 0:00:14]} ({Better is} 45... Rg5 $1 $17) 46. Ra7 $11 {[%emt 0:00:58] The position is equal.} h6 {[%emt 0:01:31] White must now prevent ...Kh4.} 47. Ra6 {[%emt 0:00:22]} Rb4+ {[%emt 0:01:22]} 48. Kf5 {[%emt 0:03:20] Weighted Error Value: White=0.49/Black=0.43} 1/2-1/2

[Event "44th Chess Olympiad Women 2022"]
[Site "Chennai"]
[Date "2022.08.09"]
[Round "11.32"]
[White "Charinda, Kudzanayi"]
[Black "Nilssen, Ellen Fredericia"]
[Result "1/2-1/2"]
[ECO "B90"]
[WhiteElo "1719"]
[BlackElo "2142"]
[Annotator "NA RC"]
[PlyCount "120"]
[EventDate "2022.07.29"]
[EventType "team-tourn"]
[EventCountry "IND"]
[SourceTitle "playchess.com"]
[Source "ChessBase"]
[SourceQuality "1"]
[WhiteTeam "Zimbabwe"]
[BlackTeam "Denmark"]
[WhiteTeamCountry "ZIM"]
[BlackTeamCountry "DEN"]
[TimeControl "40/5400+30:1800+30"]

1. e4 {[%emt 0:00:13]} c5 {[%emt 0:00:15]} 2. Nf3 {[%emt 0:00:08]} d6 {[%emt 0:00:16]} 3. d4 {[%emt 0:00:14]} cxd4 {[%emt 0:00:18]} 4. Nxd4 {[%emt 0:00:05]} Nf6 {[%emt 0:00:21]} 5. Nc3 {[%emt 0:00:12]} a6 {[%emt 0:00:10]} 6. Be3 {[%emt 0:00:33]} e5 {[%emt 0:00:44]} 7. Nb3 {[%emt 0:00:13]} Be7 {[%emt 0:00:16]} 8. f3 {[%emt 0:00:18]} Be6 {[%emt 0:01:25]} 9. Qd2 {[%emt 0:00:15]} h5 {[%emt 0:01:28]} 10. O-O-O {[%emt 0:05:42]} Nbd7 {[%emt 0:01:39]} 11. Kb1 {[%emt 0:00:18]} Rc8 {[%emt 0:02:16]} 12. Be2 {[%emt 0:00:43]} b5 {[%emt 0:05:59]} 13. Nd5 {[%emt 0:00:50]} Nxd5 {[%emt 0:01:58]} 14. exd5 {[%emt 0:00:26]} Bf5 {[%emt 0:00:05]} 15. Bd3 {[%emt 0:00:19]} Bxd3 {[%emt 0:02:19]} 16. Qxd3 {[%emt 0:00:08]} Bg5 {[%emt 0:06:15]} 17. Bf2 {[%emt 0:02:18]} Qc7 {[%emt 0:06:14]} 18. h4 {[%emt 0:07:17]} Bh6 {[%emt 0:01:34]} 19. Rhe1 {[%emt 0:00:42]} a5 {[%emt 0:02:43]} 20. Nd4 {[%emt 0:04:09]} Qb8 {[%emt 0:21:43]} 21. Qxb5 {[%emt 0:02:15]} Qa7 {[%emt 0:01:09]} 22. Qe2 {[%emt 0:02:42]} Qb7 {[%emt 0:02:23]} 23. Nb5 {[%emt 0:00:46]} Ke7 {[%emt 0:01:23]} 24. Na7 {[%emt 0:05:46]} Ra8 {[%emt 0:00:32]} 25. Nc6+ {[%emt 0:00:26]} Kf8 {[%emt 0:00:24]} 26. g3 {[%emt 0:02:14]} g6 {[%emt 0:02:29]} 27. f4 {[%emt 0:00:38]} Bg7 {[%emt 0:00:13]} 28. fxe5 {[%emt 0:00:49]} Nxe5 {[%emt 0:00:25]} 29. Nxe5 {[%emt 0:00:47]} Bxe5 {[%emt 0:00:04]} 30. Bd4 {[%emt 0:00:50]} Bxd4 {[%emt 0:00:53]} 31. Rxd4 {[%emt 0:00:39]} Rb8 {[%emt 0:01:50]} 32. c4 {[%emt 0:00:49]} Kg7 {[%emt 0:00:08]} 33. Re4 {[%emt 0:00:32]} Rhc8 {[%emt 0:05:21]} 34. Re7 {[%emt 0:01:09]} Rc7 {[%emt 0:00:04]} 35. Rxc7 {[%emt 0:00:57]} Qxc7 {[%emt 0:00:02]} 36. g4 {[%emt 0:00:39]} hxg4 {[%emt 0:03:28]} 37. Qxg4 {[%emt 0:03:01]} Qb6 {[%emt 0:00:30]} 38. Qe2 {[%emt 0:00:50]} Qd4 {[%emt 0:01:27]} 39. h5 {[%emt 0:01:36]} gxh5 {[%emt 0:00:50]} 40. Qg2+ {[%emt 0:03:18]} Kf8 {[%emt 0:00:26]} 41. Qh2 {[%emt 0:33:31]} Rb6 {[%emt 0:33:27]} 42. Qe2 {[%emt 0:01:08]} Rb7 {[%emt 0:06:33]} 43. Qc2 {[%emt 0:06:44]} a4 {[%emt 0:03:08]} 44. Qc1 {[%emt 0:01:05]} Re7 {[%emt 0:06:48]} 45. Rd1 {[%emt 0:07:42]} Qe4+ {[%emt 0:06:45]} 46. Ka1 {[%emt 0:00:35]} Qe2 {[%emt 0:00:00]} 47. c5 {[%emt 0:00:00]} a3 {[%emt 0:00:00]} 48. Qh6+ {[%emt 0:00:00]} Ke8 {[%emt 0:00:00]} 49. Qh8+ {[%emt 0:00:00]} Kd7 {[%emt 0:00:00]} 50. c6+ {[%emt 0:00:00]} Kc7 {[%emt 0:00:00]} 51. Rb1 {[%emt 0:00:00]} axb2+ {[%emt 0:00:00]} 52. Rxb2 {[%emt 0:00:00]} Qe1+ {[%emt 0:00:00]} 53. Rb1 {[%emt 0:00:00]} Qe5+ {[%emt 0:00:00]} 54. Qxe5 {[%emt 0:00:00]} Rxe5 {[%emt 0:00:00]} 55. Rb7+ {[%emt 0:00:00]} Kc8 {[%emt 0:00:00]} 56. Rxf7 {[%emt 0:00:00]} Rxd5 {[%emt 0:00:00]} 57. Rh7 {[%emt 0:00:00]} Rb5 {[%emt 0:00:00]} 58. a3 {[%emt 0:00:00]} Rc5 {[%emt 0:00:00]} 59. Kb2 {[%emt 0:00:00]} Rxc6 {[%emt 0:00:00]} 60. Rxh5 {[%emt 0:00:00]} Rc5 {[%emt 0:00:00]} 1/2-1/2

[Event "44th Chess Olympiad Women 2022"]
[Site "Chennai"]
[Date "2022.08.09"]
[Round "11.32"]
[White "Makwena, Christine"]
[Black "Steffensen, Elena"]
[Result "0-1"]
[ECO "E81"]
[WhiteElo "1609"]
[BlackElo "2044"]
[Annotator "NA RC"]
[PlyCount "126"]
[EventDate "2022.07.29"]
[EventType "team-tourn"]
[EventCountry "IND"]
[SourceTitle "playchess.com"]
[Source "ChessBase"]
[SourceQuality "1"]
[WhiteTeam "Zimbabwe"]
[BlackTeam "Denmark"]
[WhiteTeamCountry "ZIM"]
[BlackTeamCountry "DEN"]
[TimeControl "40/5400+30:1800+30"]

1. d4 {[%emt 0:00:02]} g6 {[%emt 0:00:04]} 2. c4 {[%emt 0:00:10]} Bg7 {[%emt 0:00:05]} 3. Nc3 {[%emt 0:00:17]} d6 {[%emt 0:00:23]} 4. e4 {[%emt 0:00:18]} Nf6 {[%emt 0:00:14]} 5. Bd3 {[%emt 0:00:15]} e5 {[%emt 0:00:52]} 6. d5 {[%emt 0:00:35]} O-O {[%emt 0:00:21]} 7. Nge2 {[%emt 0:00:16]} a5 {[%emt 0:00:28]} 8. f3 {[%emt 0:01:00]} Na6 {[%emt 0:01:09]} 9. Be3 {[%emt 0:00:15]} Bd7 {[%emt 0:04:38]} 10. Qd2 {[%emt 0:00:56]} Nc5 {[%emt 0:00:31]} 11. Bxc5 {[%emt 0:00:51]} dxc5 {[%emt 0:00:06]} 12. Qe3 {[%emt 0:00:33]} Qe7 {[%emt 0:03:58]} 13. O-O {[%emt 0:00:21]} a4 {[%emt 0:05:32]} 14. a3 {[%emt 0:02:27]} Ne8 {[%emt 0:03:44]} 15. Kh1 {[%emt 0:01:59]} b6 {[%emt 0:02:05]} 16. Bc2 {[%emt 0:00:39]} Nd6 {[%emt 0:00:48]} 17. Bd3 {[%emt 0:03:51]} f5 {[%emt 0:05:51]} 18. Qd2 {[%emt 0:11:46]} f4 {[%emt 0:02:30]} 19. Qc2 {[%emt 0:01:50]} Qh4 {[%emt 0:01:52]} 20. Ng1 {[%emt 0:04:15]} g5 {[%emt 0:02:52]} 21. Qf2 {[%emt 0:00:52]} Qh5 {[%emt 0:01:43]} 22. Be2 {[%emt 0:00:54]} Rf6 {[%emt 0:02:11]} 23. Rfb1 {[%emt 0:01:58]} Raf8 {[%emt 0:02:16]} 24. b4 {[%emt 0:03:07]} axb3 {[%emt 0:00:27]} 25. Rxb3 {[%emt 0:00:22]} Rh6 {[%emt 0:02:00]} 26. h3 {[%emt 0:01:59]} Qg6 {[%emt 0:02:38]} 27. a4 {[%emt 0:03:56]} g4 {[%emt 0:02:08]} 28. fxg4 {[%emt 0:01:13]} Bxg4 {[%emt 0:01:36]} 29. Bxg4 {[%emt 0:02:53]} Qxg4 {[%emt 0:04:04]} 30. Qf3 {[%emt 0:01:17]} Qxf3 {[%emt 0:00:31]} 31. Nxf3 {[%emt 0:00:38]} Nxc4 {[%emt 0:00:08]} 32. Nb5 {[%emt 0:00:39]} c6 {[%emt 0:01:07]} 33. Nc3 {[%emt 0:01:10]} cxd5 {[%emt 0:00:55]} 34. Nxd5 {[%emt 0:00:26]} Nd6 {[%emt 0:03:00]} 35. Nc3 {[%emt 0:05:35]} Nc8 {[%emt 0:01:43]} 36. Nd5 {[%emt 0:02:23]} Rd8 {[%emt 0:01:45]} 37. a5 {[%emt 0:00:37]} bxa5 {[%emt 0:03:03]} 38. Rxa5 {[%emt 0:00:13]} Nd6 {[%emt 0:00:16]} 39. Rxc5 {[%emt 0:02:09]} Nxe4 {[%emt 0:00:19]} 40. Rcb5 {[%emt 0:02:33]} Rhd6 {[%emt 0:00:41]} 41. Ne7+ {[%emt 0:32:27]} Kf8 {[%emt 0:31:42]} 42. Nf5 {[%emt 0:00:57]} Rd1+ {[%emt 0:01:33]} 43. Kh2 {[%emt 0:04:03]} Nf2 {[%emt 0:02:54]} 44. Ng1 {[%emt 0:02:02]} e4 {[%emt 0:01:49]} 45. Nxg7 {[%emt 0:01:42]} Kxg7 {[%emt 0:00:09]} 46. Rb7+ {[%emt 0:01:59]} R8d7 {[%emt 0:04:19]} 47. Rxd7+ {[%emt 0:01:45]} Rxd7 {[%emt 0:00:03]} 48. Ne2 {[%emt 0:00:40]} Nd3 {[%emt 0:02:03]} 49. Ra3 {[%emt 0:05:45]} Rd6 {[%emt 0:00:46]} 50. Ra4 {[%emt 0:00:53]} f3 {[%emt 0:02:14]} 51. gxf3 {[%emt 0:01:34]} exf3 {[%emt 0:00:03]} 52. Ng3 {[%emt 0:01:12]} Rd5 {[%emt 0:02:32]} 53. Rd4 {[%emt 0:03:53]} Rxd4 {[%emt 0:00:34]} 54. Nf5+ {[%emt 0:00:04]} Kf6 {[%emt 0:00:16]} 55. Nxd4 {[%emt 0:00:24]} f2 {[%emt 0:00:07]} 56. Kg2 {[%emt 0:01:01]} Ke5 {[%emt 0:01:01]} 57. Nf3+ {[%emt 0:09:47]} Kf4 {[%emt 0:00:44]} 58. Nh2 {[%emt 0:00:43]} Ke3 {[%emt 0:01:25]} 59. Kf1 {[%emt 0:01:25]} h5 {[%emt 0:01:11]} 60. Kg2 {[%emt 0:03:44]} Ne1+ {[%emt 0:02:00]} 61. Kg3 {[%emt 0:02:32]} Ke2 {[%emt 0:01:09]} 62. h4 {[%emt 0:00:00]} Nf3 {[%emt 0:00:00]} 63. Kg2 {[%emt 0:00:00]} Nxh2 {[%emt 0:00:00]} 0-1

[Event "44th Chess Olympiad Women 2022"]
[Site "Chennai"]
[Date "2022.08.09"]
[Round "11.33"]
[White "Stanford, Sheila Barth"]
[Black "Ranasinghe, S D"]
[Result "1-0"]
[ECO "B28"]
[WhiteElo "2097"]
[BlackElo "1687"]
[Annotator "NA RC"]
[PlyCount "53"]
[EventDate "2022.07.29"]
[EventType "team-tourn"]
[EventCountry "IND"]
[SourceTitle "playchess.com"]
[Source "ChessBase"]
[SourceQuality "1"]
[WhiteTeam "Norway"]
[BlackTeam "Sri Lanka"]
[WhiteTeamCountry "NOR"]
[BlackTeamCountry "SRI"]
[TimeControl "40/5400+30:1800+30"]

1. e4 {[%emt 0:00:06]} c5 {[%emt 0:01:26]} 2. Nf3 {[%emt 0:00:13]} a6 {[%emt 0:00:26]} 3. d4 {[%emt 0:00:23]} cxd4 {[%emt 0:00:11]} 4. Nxd4 {[%emt 0:00:05]} Nf6 {[%emt 0:00:30]} 5. Nc3 {[%emt 0:03:56]} e5 {[%emt 0:00:17]} 6. Nb3 {[%emt 0:03:51]} Bb4 {[%emt 0:00:20]} 7. Bg5 {[%emt 0:30:22]} Bxc3+ {[%emt 0:00:41]} 8. bxc3 {[%emt 0:00:04]} Qc7 {[%emt 0:00:10]} 9. Qd3 {[%emt 0:03:09]} Qc6 {[%emt 0:00:49]} 10. Nd2 {[%emt 0:04:36]} h6 {[%emt 0:00:18]} 11. Bxf6 {[%emt 0:02:22]} Qxf6 {[%emt 0:00:32]} 12. Nc4 {[%emt 0:00:53]} O-O {[%emt 0:02:32]} 13. Nd6 {[%emt 0:00:36]} Nc6 {[%emt 0:00:59]} 14. Be2 {[%emt 0:09:55]} Qe6 {[%emt 0:02:01]} 15. h3 {[%emt 0:02:20]} Ne7 {[%emt 0:01:36]} 16. Bg4 {[%emt 0:01:28]} f5 {[%emt 0:01:19]} 17. Bxf5 {[%emt 0:02:14]} Nxf5 {[%emt 0:00:16]} 18. exf5 {[%emt 0:00:16]} Qe7 {[%emt 0:01:54]} 19. O-O {[%emt 0:00:34]} Kh8 {[%emt 0:05:48]} 20. Rfe1 {[%emt 0:03:12]} b5 {[%emt 0:09:55]} 21. Qd5 {[%emt 0:01:37]} Rb8 {[%emt 0:00:07]} 22. Rxe5 {[%emt 0:00:24]} Qf6 {[%emt 0:00:17]} 23. Rae1 {[%emt 0:00:29]} Kh7 {[%emt 0:00:58]} 24. R1e3 {[%emt 0:07:54]} Rb6 {[%emt 0:00:14]} 25. Nxc8 {[%emt 0:03:46]} Rxc8 {[%emt 0:05:16]} 26. Re8 {[%emt 0:00:08]} Re6 {[%emt 0:00:12]} 27. Rxc8 {[%emt 0:00:20]} 1-0

[Event "44th Chess Olympiad Women 2022"]
[Site "Chennai"]
[Date "2022.08.09"]
[Round "11.33"]
[White "Rodsmoen, Maud"]
[Black "Abeysinghe, H M H Janandani"]
[Result "0-1"]
[ECO "B75"]
[WhiteElo "1975"]
[BlackElo "1516"]
[Annotator "TA"]
[PlyCount "84"]
[EventDate "2022.07.29"]
[EventType "team-tourn"]
[EventCountry "IND"]
[SourceTitle "playchess.com"]
[Source "ChessBase"]
[SourceQuality "1"]
[WhiteTeam "Norway"]
[BlackTeam "Sri Lanka"]
[WhiteTeamCountry "NOR"]
[BlackTeamCountry "SRI"]
[TimeControl "40/5400+30:1800+30"]

{[%evp 14,84,51,62,57,48,43,38,31,39,45,53,40,46,46,0,38,39,55,0,0,0,0,0,8,0,60,14,20,0,66,58,73,0,62,7,10,11,0,0,3,-168,-168,-166,-162,-152,-156,-156,-168,-161,-161,-143,-15,-170,-170,-300,-293,-356,-292,-360,-357,-785,-776,-29994,-518,-518,-510,-478,-462,-778,-735,-643,-634]} 1. e4 {[%emt 0:00:01]} c5 {[%emt 0:00:18]} 2. Nf3 {[%emt 0:00:06]} d6 {[%emt 0:00:18]} 3. d4 {[%emt 0:00:05]} cxd4 {[%emt 0:00:32]} 4. Nxd4 {[%emt 0:00:04]} Nf6 {[%emt 0:00:07]} 5. Nc3 {[%emt 0:00:04]} g6 {[%emt 0:00:05]} 6. Be3 {[%emt 0:00:14]} Bg7 {[%emt 0:00:06]} 7. f3 {[%emt 0:00:17]} a6 {[%emt 0:01:26]} 8. Qd2 {[%emt 0:02:00]} h5 {[%emt 0:00:42] 8...b5 is a critical line. B75: Sicilian Dragon: Yugoslav Attack, Miscellaneous.} 9. h3 {[%emt 0:11:30]} Nbd7 {[%emt 0:01:42] [#]} 10. Rg1 $146 {[%emt 0:15:45]} ({Predecessor:} 10. Be2 Qc7 11. a4 O-O 12. g4 Nc5 13. g5 Ne8 14. a5 e6 15. b4 Nd7 16. Na4 {1-0 (49) Van Bommel,T (2065)-Bellanger,M (2058) LSS email 2014}) 10... b5 {[%emt 0:03:08] White is slightly better.} 11. a4 {[%emt 0:05:29]} b4 {[%emt 0:05:52]} 12. Na2 {[%emt 0:04:27]} a5 {[%emt 0:00:23]} 13. Bb5 {[%emt 0:03:47]} Bb7 {[%emt 0:04:10]} 14. c3 {[%emt 0:03:23]} (14. O-O-O $1 $14) 14... bxc3 {[%emt 0:01:15]} 15. Nxc3 {[%emt 0:00:45]} O-O {[%emt 0:02:14]} 16. Nc6 {[%emt 0:03:19]} (16. O-O-O $1 $14) 16... Bxc6 $11 {[%emt 0:02:04]} 17. Bxc6 {[%emt 0:00:03]} Rc8 {[%emt 0:01:07]} 18. Bb5 {[%emt 0:02:55]} Nc5 {[%emt 0:03:41] And now ...Nb3 would win.} 19. Rd1 {[%emt 0:02:50]} Qc7 {[%emt 0:04:37]} (19... Nfd7 $11) 20. Kf2 {[%emt 0:03:13]} (20. g4 $14 {is superior.}) 20... Rfd8 {[%emt 0:06:55]} 21. Qe2 {[%emt 0:07:18]} Ncd7 {[%emt 0:04:43]} ({Better is} 21... e6 $11) 22. Rc1 {[%emt 0:02:10]} Nc5 {[%emt 0:01:16]} 23. Rcd1 {[%emt 0:03:34]} (23. Rgd1 $5 {[%cal Rc3a2]}) 23... Ncd7 {[%emt 0:01:20]} 24. Nd5 {[%emt 0:01:09]} (24. Rgf1 $14) 24... Nxd5 {[%emt 0:00:33]} 25. exd5 {[%emt 0:02:30]} Qc2 {[%emt 0:14:52]} 26. Rd2 {[%emt 0:10:15]} Qb3 {[%emt 0:03:17]} 27. Bd4 $2 {[%emt 0:01:16]} (27. Rb1 $11) 27... Bxd4+ $19 {[%emt 0:06:19]} 28. Rxd4 {[%emt 0:00:03]} Rc2 {[%emt 0:00:46]} 29. Rd2 {[%emt 0:00:37]} Rxd2 {[%emt 0:02:56] Black is more active.} 30. Qxd2 {[%emt 0:00:04] [#]} Rc8 $1 {[%emt 0:01:58] White must now prevent ...Rc2.} 31. Rc1 {[%emt 0:03:54] Against Rc2} ({Avoid the trap} 31. Bxd7 $2 Rc2 32. Rd1 Qxb2 $19) 31... Rxc1 {[%emt 0:00:14]} 32. Qxc1 {[%emt 0:00:03][%mdl 4096] Endgame KQB-KQN} Nc5 {[%emt 0:00:26]} (32... Nb6 $17 33. Bc6 Nxa4 34. Bxa4 Qxa4) 33. Qd2 $2 {[%emt 0:05:14]} (33. Qc3 $1 $11) 33... Nxa4 {[%emt 0:03:29]} 34. Qxa5 {[%emt 0:03:04]} (34. Bxa4 {is the only way for White.} Qxa4 35. Qd3) 34... Qxb2+ {[%emt 0:00:22]} 35. Kg3 {[%emt 0:03:57]} Nc3 {[%emt 0:03:23]} 36. Bd3 {[%emt 0:01:18]} Qd2 {[%emt 0:02:54]} 37. Qd8+ $2 {[%emt 0:01:36]} (37. Qa6) 37... Kg7 {[%emt 0:00:29]} 38. Be4 {[%emt 0:00:33]} Nxe4+ {[%emt 0:02:40]} (38... Ne2+ $142 39. Kf2 Nf4+ 40. Kg3 g5 41. Qg8+ Kxg8 42. Bh7+ Kxh7 43. h4 Qxg2#) 39. fxe4 {[%emt 0:00:07] Black is clearly winning.} Qe3+ {[%emt 0:00:57]} 40. Kh2 {[%emt 0:00:40]} Qxe4 {[%emt 0:00:07]} 41. Qa5 {[%emt 0:01:26]} (41. Kh1 $142 g5 42. Qa5) 41... Qe5+ {[%emt 0:00:44]} 42. Kg1 {[%emt 0:01:35]} e6 {[%emt 0:00:26] Weighted Error Value: White=0.85/Black=0.35} 0-1